bitfinex/quotes_SOLUSD_20241031
["timestamp","ask_amount","ask_price","bid_price","bid_amount"]
[1730382494113,16.29194551,172.77,172.69,9.93300113]
[1730382494297,16.29194551,172.76,172.72,23.776884]
[1730382494788,16.29194551,172.74,172.7,23.776884]
[1730382495493,16.29194551,172.75,172.71,0.12549]
[1730382495808,16.29194551,172.76,172.72,23.776884]
[1730382496390,16.29194551,172.75,172.71,23.776884]
[1730382496592,16.29194551,172.76,172.71,16.29194551]
[1730382497014,16.29194551,172.75,172.7,40.06882951]
[1730382497615,16.29194551,172.74,172.68,17.16027771]
[1730382497819,16.29194551,172.72,172.68,0.8683322]
[1730382498208,16.29194551,172.73,172.68,17.16027771]
[1730382498713,16.29194551,172.72,172.68,0.8683322]
[1730382499124,16.29194551,172.71,172.68,0.8683322]
[1730382499423,16.29194551,172.69,172.68,0.8683322]
[1730382500206,16.29194551,172.7,172.68,0.8683322]
[1730382500819,16.29194551,172.72,172.68,0.8683322]
[1730382501915,16.29194551,172.73,172.68,17.16027771]
[1730382502114,16.29194551,172.73,172.68,0.8683322]
[1730382502307,16.29194551,172.72,172.68,0.8683322]
[1730382504902,16.29194551,172.73,172.68,17.16027771]
[1730382505204,16.29194551,172.72,172.68,0.8683322]
[1730382505623,16.29194551,172.75,172.69,16.29194551]
[1730382506124,16.29194551,172.76,172.71,16.29194551]
[1730382506426,16.29194551,172.75,172.7,16.29194551]
[1730382507330,16.29194551,172.74,172.69,40.06882951]
[1730382507803,16.29194551,172.75,172.7,16.29194551]
[1730382507999,16.29194551,172.74,172.69,23.776884]
[1730382508242,16.29194551,172.75,172.7,16.29194551]
[1730382508726,16.29194551,172.75,172.69,23.776884]
[1730382508727,16.29194551,172.77,172.72,16.29194551]
[1730382508897,14.6643,172.84,172.73,23.776884]
[1730382508898,16.29194551,172.78,172.73,23.776884]
[1730382509100,16.29194551,172.79,172.74,16.29194551]
[1730382509520,16.29194551,172.8,172.74,16.29194551]
[1730382510225,16.29194551,172.81,172.76,16.29194551]
[1730382510424,16.29194551,172.81,172.75,16.29194551]
[1730382510632,16.29194551,172.79,172.74,16.29194551]
[1730382511130,16.29194551,172.75,172.7,16.29194551]
[1730382511512,16.29194551,172.74,172.69,16.29194551]
[1730382511913,16.29194551,172.73,172.68,39.20627771]
[1730382512108,16.29194551,172.71,172.68,0.8683322]
[1730382514626,20.0,172.68,172.65,11.09676309]
[1730382514808,36.29194551,172.68,172.65,11.09676309]
[1730382515006,36.41743551,172.68,172.65,11.09676309]
[1730382516416,42.20843551,172.68,172.65,11.09676309]
[1730382517311,36.41743551,172.68,172.65,11.09676309]
[1730382517526,42.20843551,172.68,172.65,11.09676309]
[1730382517710,36.41743551,172.68,172.65,11.09676309]
[1730382517912,16.29194551,172.69,172.65,11.09676309]
[1730382518338,16.29194551,172.7,172.65,27.3887086]
[1730382519028,16.29194551,172.69,172.65,11.09676309]
[1730382520726,16.29194551,172.73,172.68,16.29194551]
[1730382521038,16.29194551,172.74,172.68,16.29194551]
[1730382521209,16.29194551,172.72,172.67,16.88078591]
[1730382521406,16.29194551,172.73,172.68,40.06882951]
[1730382521610,16.29194551,172.74,172.7,23.776884]
[1730382521917,16.29194551,172.74,172.69,23.902374]
[1730382522432,16.29194551,172.73,172.69,23.902374]
[1730382522806,16.29194551,172.74,172.69,23.902374]
[1730382523614,42.42034551,172.7,172.67,0.5888404]
[1730382523913,16.29194551,172.68,172.67,0.5888404]
[1730382526523,42.20843551,172.68,172.67,0.5888404]
[1730382527331,16.29194551,172.68,172.67,0.5888404]
[1730382530846,22.08294551,172.68,172.67,0.5888404]
[1730382531034,16.29194551,172.68,172.67,0.5888404]
[1730382531420,22.08294551,172.68,172.67,0.5888404]
[1730382532740,16.29194551,172.68,172.67,0.5888404]
[1730382534451,22.08294551,172.68,172.67,0.5888404]
[1730382535741,42.20843551,172.68,172.67,0.5888404]
[1730382541841,36.41743551,172.68,172.67,0.5888404]
[1730382542051,42.20843551,172.68,172.67,0.5888404]
[1730382543425,22.20843551,172.68,172.67,0.5888404]
[1730382543635,16.29194551,172.68,172.67,0.5888404]
[1730382544048,22.20843551,172.68,172.67,0.5888404]
[1730382544833,42.20843551,172.68,172.67,0.5888404]
[1730382545446,42.30843551,172.68,172.67,0.5888404]
[1730382545652,42.20843551,172.68,172.67,0.5888404]
[1730382546856,42.30843551,172.68,172.67,0.5888404]
[1730382547530,0.12549,172.67,172.65,11.09676309]
[1730382547730,16.29194551,172.59,172.57,16.4553]
[1730382548151,16.29194551,172.61,172.57,16.4553]
[1730382548339,16.29194551,172.59,172.55,0.4]
[1730382548545,0.1,172.59,172.55,0.4]
[1730382548755,0.22549,172.58,172.55,0.4]
[1730382548959,0.12549,172.58,172.55,0.4]
[1730382549654,36.41743551,172.56,172.55,0.4]
[1730382550034,52.70938102,172.56,172.55,0.4]
[1730382550231,52.70938102,172.56,172.4,6.0884258]
[1730382550232,0.1,172.49,172.4,5.9884258]
[1730382550544,0.12549,172.5,172.36,16.29194551]
[1730382550545,16.29194551,172.41,172.36,16.29194551]
[1730382550862,20.1,172.51,172.32,0.5888404]
[1730382550863,0.12549,172.48,172.32,0.6888404]
[1730382551040,16.29194551,172.39,172.34,16.29194551]
[1730382551238,16.29194551,172.38,172.32,16.88078591]
[1730382551438,16.29194551,172.44,172.32,16.88078591]
[1730382551439,16.29194551,172.37,172.32,16.88078591]
[1730382551653,16.29194551,172.37,172.32,0.5888404]
[1730382551858,16.29194551,172.38,172.32,16.88078591]
[1730382552060,16.29194551,172.38,172.33,20.0]
[1730382552236,16.29194551,172.37,172.32,16.88078591]
[1730382552562,16.29194551,172.35,172.32,0.5888404]
[1730382553238,16.29194551,172.34,172.32,0.5888404]
[1730382553828,16.29194551,172.35,172.32,0.5888404]
[1730382554048,22.67784551,172.44,172.32,0.5888404]
[1730382554049,16.29194551,172.36,172.32,0.5888404]
[1730382554533,16.29194551,172.37,172.32,0.5888404]
[1730382554733,6.4588,172.49,172.32,0.5888404]
[1730382554734,16.29194551,172.41,172.36,0.12549]
[1730382554948,0.1,172.5,172.36,0.12549]
[1730382554949,16.29194551,172.43,172.38,0.12549]
[1730382555135,22.92114551,172.53,172.36,0.12549]
[1730382555136,16.29194551,172.45,172.39,16.29194551]
[1730382555351,16.29194551,172.44,172.39,16.29194551]
[1730382555552,16.29194551,172.45,172.4,23.776884]
[1730382556451,16.29194551,172.47,172.42,23.776884]
[1730382557258,16.29194551,172.43,172.41,15.1163]
[1730382557556,16.29194551,172.44,172.41,15.1163]
[1730382558043,16.29194551,172.43,172.41,15.1163]
[1730382558654,16.29194551,172.44,172.41,15.1163]
[1730382559063,16.29194551,172.45,172.41,15.1163]
[1730382559365,16.29194551,172.42,172.41,15.1163]
[1730382559880,16.29194551,172.43,172.41,15.1163]
[1730382560041,5.7979,172.48,172.41,15.1163]
[1730382560042,16.29194551,172.44,172.41,15.1163]
[1730382560565,5.7975,172.49,172.36,6.47339]
[1730382560566,16.29194551,172.42,172.36,38.62863551]
[1730382560732,16.29194551,172.42,172.36,38.50314551]
[1730382561147,16.29194551,172.42,172.37,16.29194551]
[1730382561550,16.29194551,172.42,172.37,0.12549]
[1730382561757,16.29194551,172.43,172.37,16.41743551]
[1730382562061,16.29194551,172.43,172.38,23.776884]
[1730382562568,16.29194551,172.42,172.38,23.776884]
[1730382562950,16.29194551,172.43,172.38,16.29194551]
[1730382563150,16.29194551,172.43,172.39,23.776884]
[1730382563460,16.29194551,172.42,172.38,23.776884]
[1730382563668,16.29194551,172.41,172.38,23.776884]
[1730382563972,16.29194551,172.41,172.37,23.776884]
[1730382564338,16.29194551,172.41,172.36,22.2112]
[1730382564540,16.29194551,172.41,172.36,38.50314551]
[1730382565142,16.29194551,172.4,172.36,22.2112]
[1730382565357,16.29194551,172.37,172.36,15.8633]
[1730382565548,16.29194551,172.38,172.33,32.55584551]
[1730382565954,16.29194551,172.44,172.32,0.5888404]
[1730382565955,16.29194551,172.35,172.32,0.5888404]
[1730382566337,6.764,172.42,172.32,0.5888404]
[1730382566338,16.29194551,172.36,172.32,0.5888404]
[1730382566568,6.764,172.42,172.32,0.5888404]
[1730382566569,16.29194551,172.34,172.32,0.5888404]
[1730382566768,0.1,172.41,172.32,0.5888404]
[1730382566950,16.29194551,172.35,172.32,0.5888404]
[1730382567351,16.29194551,172.34,172.32,0.5888404]
[1730382567561,16.29194551,172.35,172.32,0.5888404]
[1730382567746,16.29194551,172.36,172.32,0.5888404]
[1730382568060,16.29194551,172.38,172.32,16.88078591]
[1730382568473,16.41743551,172.38,172.32,16.88078591]
[1730382568775,16.41743551,172.38,172.32,11.88078591]
[1730382568949,16.41743551,172.38,172.3,0.86963058]
[1730382568950,16.29194551,172.37,172.31,16.29194551]
[1730382569145,16.29194551,172.37,172.32,16.29194551]
[1730382569350,16.29194551,172.36,172.31,16.29194551]
[1730382569566,16.29194551,172.36,172.3,17.16157609]
[1730382570145,16.29194551,172.37,172.31,16.29194551]
[1730382570649,16.41743551,172.38,172.32,16.29194551]
[1730382570850,16.29194551,172.37,172.32,16.29194551]
[1730382571260,16.29194551,172.4,172.35,16.29194551]
[1730382571568,16.29194551,172.41,172.36,16.29194551]
[1730382571775,16.29194551,172.39,172.34,16.29194551]
[1730382571978,16.29194551,172.4,172.35,16.29194551]
[1730382572180,16.29194551,172.39,172.34,16.29194551]
[1730382572351,16.29194551,172.38,172.33,16.29194551]
[1730382572778,16.29194551,172.38,172.32,16.29194551]
[1730382573368,0.12549,172.36,172.31,16.29194551]
[1730382573680,16.29194551,172.35,172.3,17.16157609]
[1730382573864,16.41743551,172.34,172.3,0.86963058]
[1730382574190,16.29194551,172.32,172.3,0.86963058]
[1730382574368,0.12549,172.3,172.27,0.5006]
[1730382574570,16.29194551,172.28,172.27,0.5006]
[1730382574772,39.35888102,172.28,172.27,0.5006]
[1730382574977,22.96693551,172.28,172.27,0.5006]
[1730382575159,16.41743551,172.28,172.27,0.5006]
[1730382575358,22.22193551,172.28,172.27,0.5006]
[1730382575983,38.61388102,172.28,172.27,0.5006]
[1730382576190,16.41743551,172.28,172.27,0.5006]
[1730382577269,22.22193551,172.28,172.27,0.5006]
[1730382577476,22.32193551,172.28,172.27,0.5006]
[1730382578385,38.61388102,172.28,172.27,0.5006]
[1730382578968,22.32193551,172.28,172.27,0.5006]
[1730382580383,16.41743551,172.28,172.27,0.5006]
[1730382580787,16.29194551,172.28,172.27,0.5006]
[1730382581167,16.29194551,172.28,172.27,6.3054]
[1730382581378,16.29194551,172.29,172.27,20.8175]
[1730382581681,16.29194551,172.31,172.27,20.8175]
[1730382582058,16.29194551,172.29,172.27,20.8175]
[1730382582264,16.29194551,172.28,172.27,20.8175]
[1730382582460,16.29194551,172.31,172.27,20.8175]
[1730382583682,16.29194551,172.33,172.27,66.13364551]
[1730382584084,16.29194551,172.32,172.27,66.13364551]
[1730382584275,16.29194551,172.34,172.28,16.29194551]
[1730382584473,0.1,172.4,172.27,49.8417]
[1730382584474,16.29194551,172.35,172.3,16.29194551]
[1730382584874,16.29194551,172.36,172.3,16.29194551]
[1730382585087,16.29194551,172.38,172.33,16.29194551]
[1730382585262,16.29194551,172.39,172.34,16.29194551]
[1730382585473,16.29194551,172.38,172.33,16.29194551]
[1730382585665,16.29194551,172.36,172.31,16.29194551]
[1730382586184,16.29194551,172.36,172.32,20.3109]
[1730382586390,16.29194551,172.34,172.32,20.3109]
[1730382586582,16.29194551,172.35,172.32,20.3109]
[1730382586773,16.29194551,172.38,172.32,35.60284551]
[1730382587174,16.29194551,172.35,172.32,14.5078]
[1730382587682,16.29194551,172.35,172.32,20.3109]
[1730382587875,16.29194551,172.36,172.32,20.3109]
[1730382588294,16.29194551,172.35,172.32,20.3109]
[1730382589174,16.29194551,172.35,172.32,14.5078]
[1730382590869,16.29194551,172.36,172.32,14.5078]
[1730382591075,16.29194551,172.35,172.32,14.5078]
[1730382591287,16.29194551,172.36,172.32,14.5078]
[1730382591992,16.29194551,172.35,172.32,14.5078]
[1730382592206,16.29194551,172.37,172.32,30.79974551]
[1730382593496,16.29194551,172.34,172.32,20.3109]
[1730382593697,11.89522735,172.4,172.32,20.3109]
[1730382593698,16.29194551,172.33,172.32,14.5078]
[1730382593910,16.29194551,172.34,172.32,14.5078]
[1730382594885,16.29194551,172.33,172.32,14.5078]
[1730382595394,16.29194551,172.33,172.31,5.8031]
[1730382595395,16.29194551,172.33,172.27,16.79254551]
[1730382595598,16.29194551,172.29,172.27,20.8175]
[1730382596298,16.29194551,172.3,172.27,20.8175]
[1730382596497,16.29194551,172.29,172.27,20.8175]
[1730382597179,5.92809,172.34,172.27,0.5006]
[1730382597180,16.29194551,172.28,172.27,0.5006]
[1730382597994,16.29194551,172.3,172.27,6.3054]
[1730382598194,16.29194551,172.29,172.27,6.3054]
[1730382599012,22.38659378,172.35,172.27,6.3054]
[1730382599013,16.29194551,172.31,172.27,15.0127]
[1730382599300,16.29194551,172.3,172.27,15.0127]
[1730382599686,16.29194551,172.29,172.27,15.0127]
[1730382600513,16.29194551,172.31,172.27,15.0127]
[1730382600686,16.29194551,172.33,172.28,16.29194551]
[1730382600875,16.29194551,172.3,172.27,15.0127]
[1730382601082,16.29194551,172.31,172.27,15.0127]
[1730382602016,16.29194551,172.33,172.28,16.29194551]
[1730382602412,18.00531988,172.38,172.32,16.29194551]
[1730382602413,16.29194551,172.37,172.32,16.29194551]
[1730382602711,16.29194551,172.37,172.28,23.776884]
[1730382602712,5.7984,172.46,172.36,16.29194551]
[1730382602913,11.78831947,172.44,172.32,0.12549]
[1730382603116,16.29194551,172.39,172.3,6.2225]
[1730382603416,11.88831947,172.44,172.3,6.2225]
[1730382603625,16.29194551,172.39,172.34,16.29194551]
[1730382604511,22.28116498,172.44,172.3,6.2225]
[1730382604512,26.17567129,172.4,172.35,26.17567129]
[1730382605003,26.17567129,172.41,172.36,26.17567129]
[1730382605402,26.17567129,172.4,172.35,26.17567129]
[1730382606613,26.17567129,172.42,172.37,26.17567129]
[1730382606818,26.17567129,172.41,172.36,26.17567129]
[1730382607297,11.78831947,172.44,172.35,26.17567129]
[1730382607298,26.17567129,172.4,172.35,26.17567129]
[1730382607810,26.17567129,172.43,172.38,41.47197129]
[1730382608010,32.16489076,172.44,172.39,26.17567129]
[1730382608399,5.98921947,172.44,172.41,26.17567129]
[1730382608614,0.1,172.54,172.39,6.5606]
[1730382608615,26.17567129,172.49,172.43,26.17567129]
[1730382608815,26.17567129,172.51,172.46,26.17567129]
[1730382609226,5.795,172.56,172.45,26.17567129]
[1730382609227,26.17567129,172.5,172.45,26.17567129]
[1730382609814,26.17567129,172.53,172.49,26.17567129]
[1730382610032,26.17567129,172.52,172.48,16.3229]
[1730382610238,26.17567129,172.51,172.48,16.3229]
[1730382610409,26.17567129,172.49,172.48,16.3229]
[1730382610714,26.17567129,172.49,172.44,41.74877129]
[1730382611125,20.2816,172.57,172.44,41.74877129]
[1730382611126,26.17567129,172.5,172.45,26.17567129]
[1730382611427,26.17567129,172.51,172.46,26.17567129]
[1730382611616,5.98675291,172.58,172.44,15.5731]
[1730382611617,26.17567129,172.52,172.47,26.17567129]
[1730382611817,26.17567129,172.54,172.49,26.17567129]
[1730382612151,26.17567129,172.54,172.49,32.49397129]
[1730382613046,26.17567129,172.59,172.53,26.17567129]
[1730382613224,26.17567129,172.59,172.49,6.3183]
[1730382613225,26.17567129,172.59,172.54,26.17567129]
[1730382613419,26.17567129,172.58,172.53,26.17567129]
[1730382614284,26.17567129,172.59,172.54,26.17567129]
[1730382614554,26.17567129,172.61,172.56,26.17567129]
[1730382614716,26.17567129,172.62,172.57,26.17567129]
[1730382614917,26.17567129,172.63,172.58,26.17567129]
[1730382615219,26.17567129,172.64,172.59,26.17567129]
[1730382616145,26.17567129,172.65,172.6,26.17567129]
[1730382616317,26.17567129,172.64,172.59,26.17567129]
[1730382616522,26.17567129,172.65,172.6,26.17567129]
[1730382616835,26.17567129,172.68,172.63,26.17567129]
[1730382617041,26.17567129,172.68,172.59,6.5946]
[1730382617042,26.17567129,172.69,172.64,26.17567129]
[1730382617246,26.17567129,172.65,172.59,6.5946]
[1730382617542,5.7903,172.7,172.59,6.5946]
[1730382617741,5.7903,172.7,172.6,26.17567129]
[1730382617921,26.17567129,172.65,172.6,26.17567129]
[1730382618121,26.17567129,172.64,172.59,32.77027129]
[1730382618319,26.17567129,172.63,172.59,6.5946]
[1730382618817,26.17567129,172.62,172.57,26.17567129]
[1730382619025,26.17567129,172.59,172.55,6.3835]
[1730382619439,26.17567129,172.58,172.53,42.16787129]
[1730382619736,26.17567129,172.59,172.54,26.17567129]
[1730382620035,26.17567129,172.59,172.53,42.16787129]
[1730382620219,26.17567129,172.6,172.55,26.17567129]
[1730382620420,26.17567129,172.59,172.54,26.17567129]
[1730382620740,26.17567129,172.58,172.53,42.16787129]
[1730382621114,26.17567129,172.6,172.55,26.17567129]
[1730382621540,26.17567129,172.66,172.59,26.17567129]
[1730382621721,26.17567129,172.65,172.6,26.17567129]
[1730382622037,26.17567129,172.64,172.59,26.17567129]
[1730382622233,26.17567129,172.62,172.57,26.17567129]
[1730382622741,26.17567129,172.6,172.55,26.17567129]
[1730382622925,26.17567129,172.6,172.54,23.902374]
[1730382622926,26.17567129,172.61,172.56,26.17567129]
[1730382623434,26.17567129,172.6,172.55,26.17567129]
[1730382623627,26.17567129,172.63,172.54,0.12549]
[1730382623832,26.17567129,172.63,172.58,26.17567129]
[1730382624036,26.17567129,172.62,172.57,26.17567129]
[1730382624226,26.17567129,172.62,172.58,26.17567129]
[1730382624540,26.17567129,172.64,172.59,26.17567129]
[1730382625044,26.17567129,172.64,172.6,26.17567129]
[1730382625247,26.17567129,172.65,172.6,26.17567129]
[1730382625537,26.17567129,172.64,172.59,26.17567129]
[1730382626137,26.17567129,172.67,172.62,26.17567129]
[1730382627330,26.17567129,172.68,172.63,26.17567129]
[1730382627535,26.17567129,172.67,172.62,26.17567129]
[1730382627740,5.7904,172.7,172.6,6.3165]
[1730382627741,26.17567129,172.68,172.63,26.17567129]
[1730382628628,26.17567129,172.67,172.63,26.17567129]
[1730382628826,26.17567129,172.66,172.61,26.17567129]
[1730382629030,26.17567129,172.65,172.61,5.7934]
[1730382629413,26.17567129,172.67,172.62,26.17567129]
[1730382629640,26.30116129,172.65,172.61,5.7934]
[1730382630226,0.12549,172.65,172.61,46.45257129]
[1730382630621,26.17567129,172.68,172.63,26.17567129]
[1730382630846,6.0108,172.81,172.68,23.902374]
[1730382631042,6.0108,172.81,172.74,26.17567129]
[1730382631043,26.17567129,172.79,172.74,26.17567129]
[1730382631627,26.17567129,172.8,172.74,26.17567129]
[1730382631829,26.17567129,172.79,172.74,26.17567129]
[1730382632946,26.17567129,172.8,172.74,26.17567129]
[1730382633148,26.17567129,172.79,172.74,26.17567129]
[1730382634226,26.17567129,172.79,172.72,14.4739]
[1730382634227,26.17567129,172.78,172.73,26.17567129]
[1730382634422,26.17567129,172.77,172.73,26.17567129]
[1730382634629,26.17567129,172.76,172.72,14.4739]
[1730382634851,0.12549,172.74,172.7,31.96597129]
[1730382635628,0.12549,172.74,172.72,26.17567129]
[1730382636076,0.5888404,172.75,172.73,46.43807129]
[1730382636357,0.5888404,172.75,172.74,26.17567129]
[1730382637026,0.5888404,172.75,172.73,46.43807129]
[1730382637231,0.5888404,172.75,172.73,20.2624]
[1730382637752,0.5888404,172.75,172.73,46.43807129]
[1730382638134,0.5888404,172.75,172.74,26.17567129]
[1730382639539,0.5888404,172.75,172.72,26.17567129]
[1730382639746,0.5888404,172.75,172.73,26.17567129]
[1730382639946,0.5888404,172.75,172.74,26.17567129]
[1730382642558,0.5888404,172.75,172.74,26.30116129]
[1730382644074,0.5888404,172.75,172.74,26.17567129]
[1730382644443,0.5888404,172.75,172.74,16.28387348]
[1730382646554,5.98416832,172.87,172.75,23.902374]
[1730382646555,22.2680418,172.87,172.75,23.902374]
[1730382646770,16.28387348,172.87,172.82,16.28387348]
[1730382646955,16.28387348,172.86,172.81,16.28387348]
[1730382647437,16.28387348,172.85,172.8,16.28387348]
[1730382647642,16.28387348,172.82,172.78,16.28387348]
[1730382647834,16.28387348,172.83,172.78,16.28387348]
[1730382648460,0.12549,172.82,172.78,16.28387348]
[1730382649350,0.12549,172.82,172.74,0.86796789]
[1730382649351,16.40936348,172.82,172.77,16.28387348]
[1730382649542,0.12549,172.8,172.76,16.28387348]
[1730382649761,0.12549,172.8,172.77,16.28387348]
[1730382649941,0.12549,172.8,172.78,16.28387348]
[1730382651472,0.12549,172.8,172.74,0.86796789]
[1730382651473,16.28387348,172.86,172.79,16.28387348]
[1730382651645,16.28387348,172.88,172.83,16.28387348]
[1730382651846,29.14437348,172.89,172.84,16.28387348]
[1730382652143,22.61517348,172.89,172.84,16.28387348]
[1730382652365,16.28387348,172.89,172.84,16.28387348]
[1730382652861,16.28387348,172.9,172.84,16.28387348]
[1730382653066,16.28387348,172.9,172.85,16.28387348]
[1730382653250,16.28387348,172.91,172.86,16.28387348]
[1730382653445,16.28387348,172.89,172.84,16.28387348]
[1730382653651,16.28387348,172.88,172.83,16.28387348]
[1730382653865,16.28387348,172.88,172.8,15.0504]
[1730382653866,16.28387348,172.86,172.82,16.28387348]
[1730382654045,16.28387348,172.85,172.8,16.28387348]
[1730382654573,0.12549,172.84,172.8,16.28387348]
[1730382654780,0.12549,172.84,172.76,15.104]
[1730382655081,0.12549,172.84,172.81,16.28387348]
[1730382655257,16.28387348,172.84,172.79,16.28387348]
[1730382655585,16.40936348,172.83,172.78,16.28387348]
[1730382655770,16.28387348,172.79,172.74,0.86796789]
[1730382656078,0.12549,172.77,172.74,17.15184137]
[1730382656454,0.12549,172.77,172.74,0.86796789]
[1730382656947,0.12549,172.81,172.76,16.28387348]
[1730382657262,16.40936348,172.81,172.76,16.28387348]
[1730382658066,16.40936348,172.81,172.74,0.86796789]
[1730382658067,0.12549,172.81,172.77,16.28387348]
[1730382658268,0.12549,172.82,172.79,16.28387348]
[1730382658456,5.98314749,172.87,172.81,26.03383921]
[1730382658457,26.03383921,172.86,172.81,26.03383921]
[1730382658889,26.03383921,172.87,172.82,26.03383921]
[1730382659060,26.03383921,172.88,172.83,26.03383921]
[1730382659256,6.4859,172.89,172.82,26.03383921]
[1730382659594,26.03383921,172.89,172.84,26.03383921]
[1730382659893,26.03383921,172.88,172.83,26.03383921]
[1730382660178,0.5888404,172.93,172.84,26.03383921]
[1730382660179,26.03383921,172.89,172.84,26.03383921]
[1730382660377,26.03383921,172.9,172.8,41.61723921]
[1730382660583,26.03383921,172.88,172.83,26.03383921]
[1730382660755,26.03383921,172.87,172.82,26.03383921]
[1730382660956,26.03383921,172.88,172.83,26.03383921]
[1730382661163,26.03383921,172.88,172.84,26.03383921]
[1730382661577,0.12549,172.88,172.84,26.03383921]
[1730382661877,0.12549,172.88,172.8,41.61723921]
[1730382662057,0.5888404,172.93,172.8,41.61723921]
[1730382662058,26.03383921,172.92,172.87,26.03383921]
[1730382662284,26.62267961,172.93,172.88,26.03383921]
[1730382662590,26.03383921,172.92,172.87,26.03383921]
[1730382663097,0.5888404,172.93,172.89,26.03383921]
[1730382663699,0.5888404,172.93,172.9,26.03383921]
[1730382663901,0.5888404,172.93,172.91,26.03383921]
[1730382664215,0.5888404,172.93,172.92,26.03383921]
[1730382664520,0.5888404,172.93,172.9,26.03383921]
[1730382664695,0.5888404,172.93,172.92,26.03383921]
[1730382666201,0.5888404,172.93,172.9,26.03383921]
[1730382666388,0.5888404,172.93,172.92,26.03383921]
[1730382666596,0.5888404,172.93,172.92,46.03383921]
[1730382667217,0.5888404,172.93,172.92,69.93621321]
[1730382669285,0.5888404,172.93,172.92,70.03621321]
[1730382670312,26.03383921,173.01,172.93,43.902374]
[1730382670497,26.03383921,173.02,172.97,49.81072321]
[1730382670701,26.03383921,173.02,172.97,26.03383921]
[1730382671098,26.03383921,172.98,172.96,0.86686165]
[1730382671298,26.03383921,172.97,172.96,0.86686165]
[1730382671514,26.03383921,172.98,172.96,0.86686165]
[1730382672215,0.12549,172.98,172.96,0.86686165]
[1730382672428,26.15932921,172.98,172.96,0.86686165]
[1730382672713,26.03383921,172.97,172.96,0.86686165]
[1730382673324,0.12549,172.98,172.96,0.86686165]
[1730382673624,26.15932921,172.98,172.96,0.86686165]
[1730382673787,26.15932921,172.97,172.96,0.86686165]
[1730382675005,26.03383921,172.98,172.96,0.86686165]
[1730382675205,0.2,173.06,172.96,26.90070086]
[1730382675206,0.12549,173.0,172.96,26.90070086]
[1730382675412,0.12549,173.0,172.97,26.03383921]
[1730382675619,26.15932921,173.0,172.96,0.86686165]
[1730382675823,26.03383921,173.01,172.96,26.90070086]
[1730382675999,0.12549,173.01,172.98,26.03383921]
[1730382676327,26.03383921,173.02,172.97,49.93621321]
[1730382676496,26.03383921,173.04,172.99,42.09753921]
[1730382677024,6.684,173.09,172.99,42.09753921]
[1730382677025,26.03383921,173.03,172.99,16.0637]
[1730382677224,26.03383921,173.0,172.96,0.86686165]
[1730382677601,46.35713921,173.07,172.96,0.86686165]
[1730382677602,26.03383921,172.99,172.96,0.86686165]
[1730382678004,26.03383921,172.98,172.96,0.86686165]
[1730382678506,26.03383921,172.97,172.96,0.86686165]
[1730382678716,26.15932921,172.97,172.96,0.86686165]
[1730382680201,0.12549,172.97,172.96,0.86686165]
[1730382680409,26.15932921,172.98,172.96,0.86686165]
[1730382680609,26.03383921,173.0,172.96,0.86686165]
[1730382680813,26.03383921,173.01,172.96,26.90070086]
[1730382681324,26.03383921,172.98,172.96,0.86686165]
[1730382682122,5.7799,173.02,172.96,0.86686165]
[1730382682123,26.03383921,172.97,172.96,0.86686165]
[1730382682701,26.15932921,172.97,172.96,0.86686165]
[1730382683024,31.94062921,172.97,172.96,0.86686165]
[1730382683802,26.15932921,172.97,172.96,0.86686165]
[1730382684209,31.94062921,172.97,172.96,0.86686165]
[1730382684595,0.12549,172.96,172.85,26.03383921]
[1730382684922,26.03383921,172.9,172.85,41.42533921]
[1730382685233,0.12549,172.96,172.85,15.3915]
[1730382685234,26.03383921,172.89,172.85,15.3915]
[1730382686218,26.03383921,172.88,172.85,15.3915]
[1730382686597,26.03383921,172.89,172.85,15.3915]
[1730382687322,5.783,172.92,172.85,41.42533921]
[1730382687323,26.03383921,172.9,172.85,41.42533921]
[1730382687618,26.03383921,172.9,172.85,15.3915]
[1730382688199,26.03383921,172.87,172.85,15.3915]
[1730382688396,26.03383921,172.87,172.81,26.03383921]
[1730382688397,26.03383921,172.86,172.81,15.1734]
[1730382688622,26.03383921,172.85,172.81,15.1734]
[1730382688931,26.03383921,172.82,172.77,15.6374]
[1730382689227,26.03383921,172.89,172.77,15.6374]
[1730382689228,26.03383921,172.81,172.77,15.6374]
[1730382689402,26.03383921,172.79,172.77,15.6374]
[1730382689601,26.03383921,172.78,172.74,0.86796789]
[1730382689800,26.03383921,172.76,172.74,0.86796789]
[1730382689999,26.03383921,172.75,172.74,0.86796789]
[1730382690423,26.15932921,172.75,172.74,0.86796789]
[1730382691218,31.94802921,172.75,172.74,0.86796789]
[1730382692504,0.12549,172.74,172.67,22.6954]
[1730382692699,26.03383921,172.7,172.67,22.6954]
[1730382693011,26.03383921,172.68,172.67,16.2411]
[1730382693321,26.03383921,172.69,172.67,17.10947159]
[1730382693727,26.03383921,172.68,172.67,17.10947159]